bitfinex/quotes_SOLUSD_20260314
["timestamp","ask_amount","ask_price","bid_price","bid_amount"]
[1773521845529,11.48197903,87.093,87.07,3.73659889]
[1773521845731,0.5,87.092,87.07,3.73659889]
[1773521848539,11.48224271,87.091,87.07,3.73659889]
[1773521848834,0.5,87.09,87.07,3.73659889]
[1773521850535,11.9825064,87.089,87.07,3.73659889]
[1773521851522,0.5,87.088,87.07,3.73659889]
[1773521854531,11.98265528,87.088,87.07,3.73659889]
[1773521854728,0.5,87.087,87.07,3.73659889]
[1773521855441,11.48265528,87.088,87.07,3.73659889]
[1773521855633,11.48265528,87.088,87.07,3.73757786]
[1773521858422,0.5,87.096,87.07,15.22252958]
[1773521858741,0.5,87.096,87.08,3.73757786]
[1773521859440,0.5,87.094,87.08,3.73757786]
[1773521860544,0.5,87.092,87.053,28.71813722]
[1773521860838,0.5,87.092,87.07,3.73757786]
[1773521861228,0.5,87.092,87.08,3.73757786]
[1773521861429,0.5,87.092,87.054,11.48712293]
[1773521861430,0.5,87.092,87.07,3.73757786]
[1773521863032,0.5,87.118,87.08,3.73757786]
[1773521863243,0.5,87.118,87.09,3.73757786]
[1773521864322,0.5,87.116,87.09,3.73757786]
[1773521864923,0.5,87.116,87.07,11.48501205]
[1773521865118,0.5,87.116,87.08,3.73757786]
[1773521869441,0.5,87.114,87.08,3.73757786]
[1773521872544,0.5,87.112,87.08,3.73757786]
[1773521874357,0.5,87.11,87.08,3.73757786]
[1773521877761,0.5,87.108,87.09,3.73757786]
[1773521879564,0.5,87.106,87.09,3.73757786]
[1773521883171,0.5,87.104,87.09,3.73757786]
[1773521893472,0.5,87.111,87.09,3.73757786]
[1773521896962,0.5,87.109,87.09,3.73757786]
[1773521905382,0.5,87.109,87.1,3.73757786]
[1773521912887,0.5,87.107,87.09,3.73757786]
[1773521915787,11.48026542,87.106,87.09,3.73757786]
[1773521915985,0.5,87.105,87.09,3.73757786]
[1773521917594,0.5,87.105,87.09,3.73609087]
[1773521922204,0.5,87.103,87.076,8.06]
[1773521922400,0.5,87.103,87.09,3.73609087]
[1773521938005,0.5,87.103,87.09,3.23609087]
[1773521943609,0.5,87.103,87.073,11.48461635]
[1773521943908,0.5,87.103,87.09,3.73609087]
[1773521944900,0.5,87.103,87.09,3.23609087]
[1773521946707,0.5,87.103,87.09,3.73609087]
[1773521950489,11.98079263,87.102,87.09,3.73609087]
[1773521955517,0.5,87.101,87.09,3.73609087]
[1773521956615,0.5,87.101,87.08,3.73609087]
[1773521956816,0.5,87.101,87.07,3.73609087]
[1773521957319,0.5,87.101,87.068,11.48527587]
[1773521957517,0.5,87.101,87.07,3.73609087]
[1773521957815,0.5,87.099,87.071,11.48488015]
[1773521959120,32.43549485,87.11,87.08,3.73609087]
[1773521959121,0.5,87.097,87.08,3.73609087]
[1773521960321,0.5,87.097,87.09,3.73609087]
[1773521960620,0.5,87.097,87.08,3.73609087]
[1773521961918,0.5,87.097,87.08,3.23609087]
[1773521963305,0.5,87.097,87.08,2.73609087]
[1773521966808,0.5,87.095,87.08,2.73609087]
[1773521970411,0.5,87.093,87.08,2.73609087]
[1773521975830,28.69940398,87.11,87.08,2.73609087]
[1773521977631,3.73730555,87.12,87.08,3.73730555]
[1773521977941,0.47743164,87.119,87.08,3.73730555]
[1773521980027,0.47743164,87.117,87.08,3.73730555]
[1773521981323,0.47743164,87.109,87.073,0.47262166]
[1773521983739,0.47743164,87.107,87.073,0.47262166]
[1773521992044,0.47032015,87.105,87.071,0.47950639]
[1773521992227,0.47032015,87.099,87.07,3.73730555]
[1773521993248,40.18461962,87.098,87.07,4.21681194]
[1773521993447,0.47032015,87.097,87.07,4.21681194]
[1773521994144,0.47032015,87.097,87.071,0.47950639]
[1773521995741,0.47032015,87.095,87.071,0.47950639]
[1773521998151,0.47032015,87.093,87.067,0.47950639]
[1773521999232,0.47032015,87.091,87.061,0.47950639]
[1773522001142,40.18923387,87.088,87.029,11.49042273]
[1773522001455,3.73730555,87.05,87.022,0.47950639]
[1773522001638,0.47032015,87.049,87.022,0.47950639]
[1773522002150,0.47032015,87.049,87.021,25.41230087]
[1773522002347,0.47032015,87.039,87.01,0.2]
[1773522002552,0.47032015,87.029,87.01,1e-08]
[1773522002959,8.06,87.04,87.0,0.2]
[1773522002960,0.47032015,87.019,87.0,1e-08]
[1773522003354,0.47032015,87.017,87.0,1e-08]
[1773522004036,0.47032015,87.009,86.984,0.47950639]
[1773522004358,0.47032015,87.009,86.98,0.67950639]
[1773522004555,0.47032015,86.999,86.97,0.2]
[1773522004758,0.47032015,86.989,86.96,0.2]
[1773522005354,0.47032015,86.987,86.96,0.2]
[1773522005551,10.66358818,87.002,86.96,0.2]
[1773522005552,0.47032015,87.0,86.97,3.73730555]
[1773522006145,11.49412075,87.001,86.97,3.73730555]
[1773522006557,11.49412075,87.001,86.981,0.22049362]
[1773522006953,19.83010893,87.001,86.981,0.22049362]
[1773522007864,18.55848835,87.0,86.972,0.22049362]
[1773522009451,0.47032015,86.997,86.972,0.22049362]
[1773522009648,0.47032015,86.989,86.96,0.2]
[1773522010358,0.47032015,86.989,86.96,0.42049362]
[1773522010556,0.47032015,86.989,86.961,0.22049362]
[1773522011358,0.47032015,86.988,86.961,0.22049362]
[1773522015064,11.96629081,86.987,86.961,0.22049362]
[1773522015286,0.47032015,86.986,86.961,0.22049362]
[1773522016667,11.49623498,86.985,86.961,0.22049362]
[1773522017065,7.4345772,86.988,86.963,0.22049362]
[1773522017450,7.90489735,86.988,86.963,0.22049362]
[1773522017652,0.47032015,86.987,86.963,0.22049362]
[1773522019172,0.47032015,86.987,86.965,0.22049362]
[1773522019473,7.4345772,86.988,86.965,0.22049362]
[1773522020064,0.48975319,87.003,86.966,0.02049362]
[1773522020274,0.48975319,87.016,86.991,0.02049362]
[1773522021361,0.48975319,87.014,86.991,0.02049362]
[1773522023875,11.49168298,87.02,86.991,0.02049362]
[1773522024655,7.35921749,87.021,86.991,0.02049362]
[1773522024857,0.48975319,87.033,87.0,3.73730555]
[1773522025155,0.48975319,87.038,87.011,0.02049362]
[1773522025570,11.97911978,87.037,87.011,0.02049362]
[1773522025767,0.48975319,87.036,87.011,0.02049362]
[1773522026068,0.48975319,87.036,87.02,3.73730555]
[1773522026273,7.28952837,87.039,87.021,0.02049362]
[1773522026569,11.48923458,87.038,87.021,0.02049362]
[1773522027563,7.28952837,87.039,87.021,0.02049362]
[1773522028771,11.48778274,87.049,87.022,0.02049362]
[1773522029374,11.48778274,87.049,86.999,8.06]
[1773522029375,0.48975319,87.039,87.001,0.02049362]
[1773522029679,0.48975319,87.037,87.002,0.02049362]
[1773522030077,0.48975319,87.037,87.01,3.73730555]
[1773522030298,0.48975319,87.037,87.011,0.02049362]
[1773522030959,11.97839577,87.043,87.021,0.02049362]
[1773522031159,11.48864258,87.043,87.031,0.02049362]
[1773522031882,0.5,87.049,87.0,11.79730555]
[1773522032089,0.5,87.049,87.0,3.73730555]
[1773522033481,0.5,87.049,87.01,3.73730555]
[1773522033870,0.5,87.047,87.0,3.73730555]
[1773522035168,0.5,87.045,87.01,3.73730555]
[1773522037581,0.5,87.043,87.011,11.49279976]
[1773522038375,0.5,87.043,87.01,3.74268129]
[1773522039377,0.5,87.041,87.01,3.74268129]
[1773522040686,0.5,87.041,87.005,11.49351737]
[1773522040979,11.48897058,87.04,87.001,11.49412075]
[1773522041172,0.5,87.039,87.001,11.49412075]
[1773522043167,11.48923458,87.038,87.001,11.49412075]
[1773522043486,0.5,87.037,87.001,11.49412075]
[1773522044282,11.48949859,87.036,87.001,11.49412075]
[1773522044471,11.98949859,87.036,87.001,11.49412075]
[1773522045183,11.48949859,87.036,87.01,3.74268129]
[1773522045368,11.98869354,87.043,87.02,3.74268129]
[1773522046476,0.5,87.042,87.02,15.2342245]
[1773522047387,0.5,87.042,87.01,3.74268129]
[1773522053491,0.5,87.042,87.011,11.49279976]
[1773522056488,0.5,87.04,87.011,11.49279976]
[1773522057594,0.5,87.039,87.002,11.49398864]
[1773522058997,0.5,87.037,87.01,3.74268129]
[1773522061884,0.5,87.035,87.01,3.74268129]
[1773522063294,0.5,87.033,87.01,3.74268129]
[1773522063993,0.5,87.033,87.008,11.49309276]
[1773522067812,28.72162853,87.043,87.001,40.22942264]
[1773522067813,0.5,87.031,87.001,40.22942264]
[1773522071805,0.5,87.029,87.001,40.22942264]
[1773522072100,0.5,87.029,87.001,11.49412075]
[1773522072402,0.5,87.029,87.01,3.74268129]
[1773522072899,0.5,87.029,86.996,8.06]
[1773522073105,0.5,87.027,87.0,3.74268129]
[1773522077599,0.5,87.025,87.001,11.49412075]
[1773522080695,0.5,87.023,87.001,11.49412075]
[1773522088602,11.49042091,87.03,87.001,11.49412075]
[1773522088603,0.5,87.035,87.01,3.74268129]
[1773522090218,0.5,87.035,87.011,11.49279976]
[1773522090518,0.5,87.05,87.02,3.74268129]
[1773522090704,0.5,87.05,87.03,3.74268129]
[1773522092119,0.5,87.05,87.012,8.06]
[1773522092316,0.5,87.05,87.02,3.74268129]
[1773522092716,0.5,87.048,87.012,8.06]
[1773522095124,0.5,87.046,87.012,8.06]
[1773522097629,0.5,87.044,87.012,8.06]
[1773522097831,0.5,87.039,87.012,8.06]
[1773522100030,40.21232104,87.038,87.012,8.06]
[1773522100233,0.5,87.037,87.012,8.06]
[1773522100434,0.5,87.037,87.0,3.74329494]
[1773522101538,0.5,87.035,87.003,11.49380375]
[1773522102230,0.5,87.035,87.0,3.74329494]
[1773522102231,0.5,87.035,86.995,11.4949135]
[1773522102432,0.5,87.029,86.995,11.4949135]
[1773522103428,0.5,87.027,86.991,11.49544205]
[1773522110441,0.5,87.037,87.01,3.74329494]
[1773522111438,11.98949859,87.036,87.011,11.49279976]
[1773522113231,0.5,87.035,87.011,11.49279976]
[1773522115541,0.5,87.033,87.0,3.74329494]
[1773522118838,0.5,87.033,87.001,11.49412075]
[1773522119640,3.74329494,87.03,86.993,11.49517777]
[1773522119823,0.5,87.029,86.993,11.49517777]
[1773522120020,0.5,87.029,87.0,3.74329494]
[1773522121843,0.5,87.029,87.001,11.49412075]
[1773522123545,0.5,87.029,86.993,40.2331222]
[1773522123754,0.5,87.029,87.0,3.74329494]
[1773522126034,0.5,87.027,86.993,40.2331222]
[1773522126234,0.5,87.027,87.0,3.74329494]
[1773522126746,0.5,87.027,86.993,11.49517777]
[1773522127125,0.5,87.027,87.0,3.74329494]
[1773522130847,0.5,87.025,87.001,11.49412075]
[1773522140254,0.5,87.025,86.993,11.49517777]
[1773522140447,0.5,87.023,86.993,11.49517777]
[1773522145266,0.5,87.021,86.993,11.49517777]
[1773522145956,0.5,87.021,86.993,40.2331222]
[1773522146161,3.74329494,87.05,87.011,0.46532251]
[1773522146462,11.48778274,87.049,87.011,0.46532251]
[1773522148166,11.48804668,87.047,87.012,11.49266767]
[1773522148364,0.46550184,87.046,87.013,0.46532251]
[1773522150770,3.74329494,87.04,87.013,0.46532251]
[1773522150964,3.74329494,87.04,87.0,3.74329494]
[1773522150965,0.46550184,87.039,87.001,0.46532251]
[1773522153474,0.46550184,87.037,87.002,0.46532251]
[1773522157665,0.46550184,87.035,87.002,0.46532251]
[1773522159676,11.48976262,87.034,87.002,0.46532251]
[1773522159973,0.46550184,87.033,87.002,0.46532251]
[1773522162272,11.49002665,87.032,87.002,0.46532251]
[1773522162479,0.46550184,87.031,87.002,0.46532251]
[1773522162977,0.46550184,87.029,87.002,0.46532251]
[1773522166885,11.49055476,87.028,87.002,0.46532251]
[1773522167081,0.46550184,87.027,87.0,0.46532251]
[1773522171189,0.48233383,87.025,87.001,0.45758124]
[1773522171387,11.49081883,87.026,87.001,0.45758124]
[1773522171873,0.49672746,87.025,87.001,0.45758124]
[1773522172386,0.49672746,87.025,87.001,11.49412075]
[1773522172586,0.49672746,87.025,87.002,0.46865808]
[1773522173381,0.49672746,87.025,87.003,11.49385653]
[1773522173564,0.49672746,87.025,87.004,0.46865808]
[1773522176093,0.49672746,87.025,87.006,0.46865808]
[1773522182201,0.49672746,87.026,87.0,15.23816303]
[1773522182380,0.49672746,87.026,87.0,11.49412581]
[1773522182776,0.49672746,87.026,86.999,8.06]
[1773522182981,0.49672746,87.019,86.982,0.46865808]
[1773522183196,0.49672746,87.009,86.982,0.46865808]
[1773522185305,0.49672746,86.999,86.977,8.06]
[1773522185504,0.49672746,86.999,86.977,8.52865808]
[1773522187305,0.49672746,86.997,86.978,0.46865808]
[1773522198213,0.49672746,86.997,86.977,8.06]
[1773522199130,0.49672746,86.995,86.977,8.06]
[1773522203519,0.47251248,86.993,86.977,8.06]
[1773522205611,0.47251248,86.991,86.977,8.06]
[1773522206513,0.47251248,86.991,86.963,11.49909596]
[1773522206699,0.47251248,86.989,86.963,11.49909596]
[1773522206903,0.47251248,86.989,86.96,0.2]
[1773522207419,0.47251248,86.989,86.963,0.46029459]
[1773522208719,3.74403722,86.99,86.96,0.2]
[1773522208720,0.47251248,86.987,86.96,0.2]
[1773522210826,0.47251248,86.985,86.962,22.29436434]
[1773522211120,0.47251248,86.985,86.963,0.46029459]
[1773522211821,0.47251248,87.008,86.971,0.46029459]
[1773522212926,0.47251248,87.006,86.973,0.46029459]
[1773522216528,0.47251248,87.004,86.981,0.46029459]
[1773522217943,11.49385653,87.003,86.981,0.46029459]
[1773522218322,0.47251248,87.002,86.966,0.46029459]
[1773522218621,0.47251248,86.999,86.966,0.46029459]
[1773522220227,0.47251248,86.997,86.966,0.46029459]
[1773522221634,0.47251248,86.995,86.966,0.46029459]
[1773522222637,0.47251248,86.993,86.966,0.46029459]
[1773522225042,0.47251248,86.989,86.966,0.46029459]
[1773522225225,0.47251248,86.989,86.962,21.83406975]
[1773522225833,0.47251248,86.989,86.962,22.29436434]
[1773522226227,0.47251248,86.989,86.963,0.46029459]
[1773522227134,0.47251248,86.987,86.963,0.46029459]
[1773522228939,0.47741138,86.992,86.965,0.48468418]
[1773522229439,0.47741138,86.99,86.965,0.48468418]
[1773522232731,11.49570635,86.989,86.965,0.48468418]
[1773522232955,0.47745521,86.988,86.965,0.48468418]
[1773522237230,0.47745521,86.986,86.965,0.48468418]
[1773522242741,0.47745521,86.986,86.966,11.49874663]
[1773522242942,11.49597066,86.987,86.967,0.45029793]
[1773522244349,0.47745521,86.988,86.967,0.45029793]
[1773522248043,0.47745521,86.986,86.967,0.45029793]
[1773522250955,11.49623498,86.985,86.967,0.45029793]
[1773522252356,0.47745521,86.985,86.967,0.45029793]
[1773522253658,0.47745521,86.985,86.963,0.45029793]
[1773522256961,0.47745521,86.984,86.963,0.45029793]
[1773522264160,0.48395587,86.989,86.963,0.45029793]
[1773522266065,0.48395587,86.987,86.963,0.45029793]
[1773522268975,0.48395587,86.985,86.963,0.45029793]
[1773522282686,11.97941488,86.991,86.971,0.47117828]
[1773522282980,0.48395587,86.99,86.971,0.47117828]
[1773522283181,0.48395587,86.988,86.971,0.47117828]
[1773522287982,0.48395587,87.001,86.973,0.47117828]
[1773522288169,0.48395587,87.001,86.972,11.49795336]
[1773522288170,7.2944055,87.014,86.991,0.47117828]
[1773522288371,7.2944055,87.014,87.001,0.47117828]
[1773522289180,0.45142328,87.013,87.001,0.47117828]
[1773522289585,0.45142328,87.013,87.0,3.74679933]
[1773522290181,0.45142328,87.013,86.996,0.46326055]
[1773522290583,0.45142328,87.012,86.99,3.74679933]
[1773522292270,0.49939488,87.01,86.99,3.74679933]
[1773522293181,0.49939488,87.01,86.987,8.06]
[1773522295979,0.49939488,87.008,86.987,8.06]
[1773522296290,0.49939488,87.008,86.981,0.45623672]
[1773522299289,11.49332812,87.007,86.972,0.45623672]
[1773522299497,0.49939488,87.006,86.972,0.45623672]
[1773522299985,0.49939488,87.006,86.972,11.95419008]
[1773522300193,0.49939488,87.006,86.973,0.45623672]
[1773522301370,3.74679933,87.0,86.967,0.45623672]
[1773522301588,0.49939488,86.999,86.967,0.45623672]
[1773522302393,11.49451711,86.998,86.967,0.45623672]
[1773522302596,0.49939488,86.997,86.967,0.45623672]
[1773522303689,0.49939488,86.997,86.963,0.45623672]
[1773522304998,0.49939488,86.995,86.963,0.45623672]
[1773522308013,0.49939488,86.993,86.963,0.45623672]
[1773522312794,0.49939488,86.991,86.965,0.45623672]
[1773522315204,0.49939488,86.989,86.965,0.45623672]
[1773522316997,11.4958385,86.988,86.965,0.45623672]
[1773522317191,0.49939488,86.987,86.965,0.45623672]
[1773522324589,0.49947531,86.985,86.965,0.45623672]
[1773522325302,0.49947531,86.983,86.965,0.45623672]
[1773522343023,0.49947531,86.981,86.962,21.83406975]
[1773522343226,0.49947531,86.977,86.945,11.50152395]
[1773522343421,0.49947531,86.977,86.946,8.06]
[1773522344026,0.49947531,86.977,86.946,8.53852275]
[1773522344225,0.49947531,86.977,86.947,0.47852275]
[1773522345722,0.49947531,86.975,86.947,0.47852275]
[1773522347225,11.49768896,86.974,86.947,0.47852275]
[1773522347433,0.49947531,86.973,86.947,0.47852275]
[1773522349231,0.46342968,86.972,86.95,3.74877001]
[1773522349417,0.46342968,86.988,86.961,0.48900515]
[1773522349818,0.46342968,86.988,86.971,0.48900515]
[1773522361155,0.46498242,86.986,86.946,8.06]
[1773522361344,0.46498242,86.986,86.92,0.2]
[1773522361345,0.46498242,86.969,86.94,0.4598935]
[1773522361546,0.46498242,86.969,86.936,0.4598935]
[1773522362755,0.46498242,86.967,86.937,0.4598935]
[1773522364657,0.46498242,86.965,86.92,0.2]
[1773522364830,0.46498242,86.939,86.92,0.2]
[1773522365031,0.46498242,86.939,86.91,0.1]
[1773522365353,0.46498242,86.929,86.91,0.1]
[1773522365863,0.46498242,86.929,86.9,0.2]
[1773522366731,0.46498242,86.927,86.9,0.2]
[1773522367453,0.46498242,86.927,86.901,11.50734744]
[1773522367757,0.46498242,86.932,86.911,0.4598935]
[1773522368070,11.50322937,86.933,86.911,0.4598935]
[1773522370544,0.46498242,86.932,86.904,0.4598935]
[1773522371956,0.46498242,86.929,86.904,0.4598935]
[1773522372760,0.46498242,86.929,86.906,0.4598935]
[1773522374459,0.46498242,86.929,86.908,0.4598935]
[1773522375047,0.46498242,86.927,86.908,0.4598935]
[1773522383265,0.47740486,86.937,86.911,0.48131843]
[1773522386469,0.47740486,86.935,86.911,0.48131843]
[1773522387549,0.47740486,86.935,86.9,3.94877001]
[1773522387550,0.47740486,86.935,86.913,0.48131843]
[1773522388472,0.47740486,86.933,86.913,0.48131843]
[1773522391471,0.47740486,86.931,86.913,0.48131843]
[1773522392353,0.47740486,86.929,86.913,0.48131843]
[1773522396578,0.47740486,86.927,86.904,11.50694772]
[1773522397161,0.47740486,86.927,86.905,0.48131843]
[1773522400782,0.47740486,86.927,86.9,3.94877001]
[1773522400783,0.47740486,86.927,86.907,0.48131843]
[1773522402482,0.47740486,86.927,86.901,0.48131843]
[1773522403486,0.47740486,86.925,86.901,0.48131843]
[1773522404382,0.47740486,86.923,86.901,0.48131843]
[1773522407564,0.47740486,86.923,86.902,11.50721502]
[1773522407766,0.47740486,86.923,86.903,0.48131843]
[1773522409380,0.47740486,86.923,86.904,11.50695019]
[1773522409575,0.47740486,86.923,86.905,0.49394535]
[1773522412286,0.47740486,86.923,86.907,0.46504662]
[1773522413681,0.47740486,86.923,86.908,11.50642058]
[1773522413888,0.47740486,86.923,86.909,0.46504662]
[1773522417087,0.47740486,86.923,86.903,0.46504662]
[1773522417292,0.4928266,86.927,86.903,0.46504662]
[1773522419390,0.4928266,86.927,86.905,0.46504662]
[1773522420880,0.4928266,86.919,86.9,0.2]
[1773522421078,3.7527127,86.91,86.9,1e-08]
[1773522421394,11.50642058,86.908,86.9,1e-08]
[1773522421695,0.4928266,86.907,86.9,1e-08]
[1773522432504,0.4928266,86.917,86.9,1e-08]
[1773522434690,11.50511628,86.918,86.9,1e-08]
[1773522436713,0.4928266,86.919,86.9,1e-08]
[1773522438400,11.50536149,86.916,86.9,1e-08]
[1773522438602,0.4928266,86.913,86.9,1e-08]
[1773522442913,11.50560192,86.915,86.9,1e-08]
[1773522443310,0.4962726,86.919,86.9,1e-08]
[1773522454328,0.4962726,86.917,86.9,1e-08]
[1773522459212,11.50508267,86.919,86.9,0.49925853]
[1773522459414,0.4962726,86.929,86.9,0.49925853]
[1773522460529,8.06,86.932,86.902,0.49925852]
[1773522460530,0.4962726,86.927,86.902,0.49925852]
[1773522464421,0.4962726,86.925,86.902,0.49925852]
[1773522467422,0.4962726,86.923,86.902,0.49925852]
[1773522469732,11.50456731,86.922,86.902,0.49925852]
[1773522470146,0.48734401,86.921,86.902,0.49925852]
[1773522482547,11.50337624,86.931,86.904,0.47777861]
[1773522482756,0.46165431,86.93,86.904,0.47777861]
[1773522484065,0.46165431,86.928,86.904,0.47777861]
[1773522484248,0.46165431,86.928,86.9,1e-08]
[1773522486162,0.46165431,86.926,86.9,1e-08]
[1773522488349,0.46165431,86.924,86.9,1e-08]
[1773522491277,0.46165431,86.922,86.9,1e-08]
[1773522493568,0.46165431,86.92,86.9,1e-08]
[1773522518877,0.46165431,86.92,86.9,11.50747987]
[1773522519082,0.46165431,86.92,86.901,0.47460425]
[1773522529997,0.46165431,86.92,86.903,0.46816793]
[1773522530196,0.47048626,86.925,86.903,0.46816793]
[1773522530596,0.47048626,86.945,86.911,0.46816793]
[1773522530906,0.47048626,86.955,86.921,0.46816793]
[1773522531609,11.50020125,86.955,86.922,11.50456731]
[1773522531818,0.47195919,86.954,86.923,0.48872189]
[1773522535292,0.47195919,86.952,86.925,0.48872189]
[1773522538014,0.47195919,86.95,86.927,0.48872189]
[1773522538312,0.47195919,86.939,86.912,0.48872189]
[1773522539401,0.47195919,86.937,86.912,0.48872189]
[1773522543513,0.47195919,86.935,86.912,0.48872189]
[1773522545321,0.47195919,86.935,86.914,0.48872189]
[1773522546817,0.47195919,86.935,86.916,0.48872189]
[1773522547395,11.50202057,86.942,86.921,0.48872189]
[1773522547598,11.97397976,86.942,86.921,0.48872189]
[1773522547814,0.47195919,86.941,86.921,0.48872189]
[1773522549521,0.47195919,86.941,86.91,3.75332691]
[1773522549522,0.47195919,86.941,86.923,0.48872189]
[1773522553008,0.47195919,86.941,86.925,0.48872189]
[1773522584249,0.48412115,86.945,86.925,0.48872189]
[1773522587455,11.50143681,86.946,86.925,0.48872189]
[1773522587456,11.50165623,86.944,86.925,0.48872189]
[1773522587657,0.48412115,86.943,86.925,0.48872189]
[1773522603575,11.49993675,86.957,86.927,0.4901624]
[1773522603772,11.97936415,86.957,86.931,0.4901624]
[1773522603965,0.4794274,86.956,86.931,0.4901624]
[1773522608469,11.50020125,86.955,86.931,0.4901624]
[1773522608663,0.4794274,86.954,86.931,0.4901624]
[1773522610167,11.50046576,86.953,86.931,0.4901624]
[1773522610473,0.4794274,86.952,86.931,0.4901624]
[1773522613873,0.4794274,86.95,86.931,0.4901624]
[1773522614074,0.4794274,86.949,86.931,0.4901624]
[1773522617480,11.50112711,86.948,86.931,0.4901624]
[1773522617669,0.4794274,86.947,86.931,0.4901624]
[1773522624490,0.46095587,86.945,86.922,0.48411841]
[1773522625190,3.75112587,86.94,86.905,0.48411841]
[1773522625370,0.46095587,86.939,86.905,0.48411841]
[1773522625974,0.46095587,86.937,86.906,0.48411841]
[1773522626392,0.46095587,86.937,86.91,3.75112587]
[1773522626592,0.46095587,86.937,86.911,0.48411841]
[1773522629595,0.46095587,86.935,86.911,0.48411841]
[1773522632496,0.46095587,86.933,86.911,0.48411841]
[1773522635501,11.50324391,86.932,86.911,0.48411841]
[1773522635881,11.96419978,86.932,86.911,0.48411841]
[1773522639398,0.46095587,86.931,86.911,0.48411841]
[1773522640491,11.96440394,86.931,86.911,0.48411841]
[1773522643503,0.46095587,86.935,86.911,0.48411841]
[1773522644399,0.46095587,86.935,86.912,11.50589101]
[1773522644591,0.46095587,86.935,86.913,0.48411841]
[1773522647507,0.46095587,86.935,86.914,11.50562625]
[1773522647809,0.46095587,86.935,86.915,0.48411841]
[1773522649410,0.46913453,86.944,86.916,11.50536149]
[1773522649592,0.46913453,86.944,86.917,0.48440245]
[1773522651706,0.47684858,86.942,86.919,0.48674719]
[1773522653616,0.47684858,86.942,86.921,0.48674719]
[1773522660519,4.22826799,86.94,86.915,0.48674719]
[1773522660702,0.47684858,86.939,86.905,0.48674719]
[1773522661622,0.47684858,86.937,86.905,0.48674719]
[1773522663023,0.47684858,86.929,86.901,11.99406091]
[1773522664402,0.47684858,86.927,86.901,0.48674719]
[1773522667321,0.47684858,86.925,86.901,0.48674719]
[1773522668523,11.5043026,86.924,86.901,0.48674719]
[1773522668729,0.47684858,86.923,86.901,0.48674719]
[1773522670115,0.47684858,86.921,86.901,0.48674719]
[1773522671515,11.50483202,86.92,86.901,0.48674719]
[1773522671822,0.47684858,86.919,86.901,0.48674719]
[1773522673527,0.47684858,86.919,86.9,1e-08]
[1773522674109,0.47684858,86.917,86.9,1e-08]
[1773522674311,0.47684858,86.917,86.891,0.48674719]
[1773522674830,0.47684858,86.917,86.893,0.48674719]
[1773522677640,0.47684858,86.915,86.893,0.48674719]
[1773522689346,11.50562625,86.914,86.893,0.48674719]
[1773522689545,0.49413252,86.913,86.893,0.48674719]
[1773522710758,0.4721945,86.911,86.893,0.48674719]
[1773522727081,11.50496439,86.919,86.894,0.45314326]
[1773522730364,0.46513079,86.919,86.894,0.45314326]
[1773522731569,11.50509675,86.918,86.894,0.45314326]
[1773522732675,0.46513079,86.917,86.894,0.45314326]
[1773522734568,11.50536149,86.916,86.894,0.45314326]
[1773522734778,0.46513079,86.915,86.894,0.45314326]
[1773522736276,11.50562625,86.914,86.894,0.45314326]
[1773522737973,0.46513079,86.913,86.894,0.45314326]
[1773522739079,11.50496439,86.919,86.894,0.45314326]
[1773522739374,11.97035991,86.917,86.894,0.45314326]
[1773522740481,3.75404402,86.93,86.896,0.45314326]
[1773522740674,7.77694992,86.934,86.911,0.45314326]
[1773522741979,7.77694992,86.934,86.92,3.75404402]
[1773522742181,7.77694992,86.934,86.921,0.45353019]
[1773522743182,7.77694992,86.934,86.923,0.45353019]
[1773522756671,8.26984587,86.934,86.923,0.45353019]
[1773522756872,8.26984587,86.934,86.918,0.45353019]
[1773522762692,0.49289595,86.934,86.918,0.45353019]
[1773522774912,0.49224847,86.938,86.918,0.45353019]
[1773522780201,0.49224847,86.936,86.918,0.45353019]
[1773522780703,0.49224847,86.94,86.92,0.46756684]
[1773522781601,0.49224847,86.94,86.921,0.46756684]
[1773522782211,11.50230497,86.94,86.921,0.46756684]
[1773522782426,0.49224847,86.939,86.921,0.46756684]
[1773522785302,28.75297962,86.948,86.921,0.46756684]
[1773522785508,0.49224847,86.947,86.923,0.46756684]
[1773522787510,0.49224847,86.945,86.913,0.46756684]
[1773522789228,11.50165623,86.944,86.913,0.46756684]
[1773522789421,0.49224847,86.939,86.909,0.46756684]
[1773522792036,0.49224847,86.929,86.899,0.46756684]
[1773522792210,0.49224847,86.929,86.901,0.46756684]
[1773522795422,0.49224847,86.919,86.892,0.46756684]
[1773522796427,0.49224847,86.899,86.89,0.2]
[1773522799832,0.49224847,86.897,86.88,0.1]
[1773522800132,0.49224847,86.889,86.87,0.1]
[1773522800325,40.27710649,86.898,86.84,79.75144226]